fUST/lending_fUST_20260111
["ID","MTS","AMOUNT","RATE_DAILY","PERIOD"]
[401262633,1768081843304,-500.0,0.00036712,2]
[401262634,1768081843315,-500.0,0.00036712,2]
[401262635,1768081843324,-500.0,0.00036712,2]
[401262636,1768081843334,-500.0,0.00036712,2]
[401262637,1768081843345,-500.0,0.00036712,2]
[401262638,1768081843361,-500.0,0.00036712,2]
[401262639,1768081843370,-500.0,0.00036712,2]
[401262640,1768081843379,-500.0,0.00036712,2]
[401262641,1768081843388,-500.0,0.00036712,2]
[401262642,1768081843398,-500.0,0.00036712,2]
[401262643,1768081843408,-500.0,0.00036712,2]
[401262644,1768081843417,-500.0,0.00036712,2]
[401262645,1768081843427,-500.0,0.00036712,2]
[401262646,1768081843437,-500.0,0.00036712,2]
[401262647,1768081843447,-500.0,0.00036712,2]
[401262648,1768081843456,-500.0,0.00036712,2]
[401262649,1768081843465,-500.0,0.00036712,2]
[401262650,1768081843475,-623.16388011,0.00036712,2]
[401262651,1768081843484,-151.0,0.00036712,31]
[401262652,1768081843493,-2293.74,0.00036712,30]
[401262653,1768081843503,-2293.74,0.00036712,30]
[401262654,1768081843512,-2293.74,0.00036712,30]
[401262655,1768081843521,-2293.74,0.00036712,30]
[401262656,1768081843531,-2293.74,0.00036712,30]
[401262657,1768081843540,-2293.74,0.00036712,30]
[401262658,1768081843550,-2293.74,0.00036712,30]
[401262659,1768081843559,-2293.74,0.00036712,30]
[401262660,1768081843569,-2293.74,0.00036712,30]
[401262661,1768081843579,-2293.74,0.00036712,30]
[401262662,1768081843588,-2293.74,0.00036712,30]
[401262663,1768081843598,-2293.74,0.00036712,30]
[401262664,1768081843607,-2293.74,0.00036712,30]
[401262665,1768081843616,-2293.74,0.00036712,30]
[401262666,1768081843627,-2293.74,0.00036712,30]
[401262667,1768081843636,-2293.74,0.00036712,30]
[401262668,1768081843646,-2293.74,0.00036712,30]
[401262669,1768081843655,-2293.74,0.00036712,30]
[401262670,1768081843665,-2293.74,0.00036712,30]
[401262671,1768081843675,-2293.74,0.00036712,30]
[401262672,1768081843684,-2293.74,0.00036712,30]
[401262673,1768081843694,-2293.74,0.00036712,30]
[401262674,1768081843704,-2293.74,0.00036712,30]
[401262675,1768081843713,-2293.83,0.00036712,30]
[401262676,1768081843723,-151.0,0.00036712,28]
[401262677,1768081843734,-151.0,0.00036712,28]
[401262678,1768081843745,-315.18853,0.00036712,31]
[401262679,1768081843755,-315.18853,0.00036712,31]
[401262680,1768081843765,-315.18853,0.00036712,31]
[401262681,1768081843776,-315.18853,0.00036712,31]
[401262682,1768081843789,-151.0,0.00036712,31]
[401262683,1768081843799,-151.0,0.00036712,31]
[401262684,1768081843809,-2479.36,0.00036712,30]
[401262685,1768081843819,-2479.36,0.00036712,30]
[401262686,1768081843831,-2479.36,0.00036712,30]
[401262687,1768081843840,-2479.36,0.00036712,30]
[401262688,1768081843850,-2479.36,0.00036712,30]
[401262689,1768081843860,-2479.36,0.00036712,30]
[401262690,1768081843870,-2479.36,0.00036712,30]
[401262691,1768081843879,-2479.36,0.00036712,30]
[401262692,1768081843888,-2479.36,0.00036712,30]
[401262693,1768081843898,-2479.36,0.00036712,30]
[401262694,1768081843907,-2479.36,0.00036712,30]
[401262695,1768081843918,-2479.36,0.00036712,30]
[401262696,1768081843927,-2479.36,0.00036712,30]
[401262697,1768081843936,-2479.36,0.00036712,30]
[401262698,1768081843945,-2479.36,0.00036712,30]
[401262699,1768081843955,-2479.36,0.00036712,30]
[401262700,1768081843964,-2479.36,0.00036712,30]
[401262701,1768081843974,-2479.36,0.00036712,30]
[401262702,1768081843983,-2479.36,0.00036712,30]
[401262703,1768081843992,-2479.36,0.00036712,30]
[401262704,1768081844002,-2479.36,0.00036712,30]
[401262705,1768081844011,-2479.36,0.00036712,30]
[401262706,1768081844021,-2479.36,0.00036712,30]
[401262708,1768081844030,-2479.42,0.00036712,30]
[401262709,1768081844040,-160.29273,0.00036712,31]
[401262710,1768081844050,-4887.27,0.00036712,30]
[401262711,1768081844059,-4887.27,0.00036712,30]
[401262712,1768081844068,-4887.27,0.00036712,30]
[401262713,1768081844079,-4887.27,0.00036712,30]
[401262714,1768081844088,-4887.27,0.00036712,30]
[401262716,1768081844097,-4887.27,0.00036712,30]
[401262718,1768081844106,-4887.27,0.00036712,30]
[401262719,1768081844115,-4887.27,0.00036712,30]
[401262720,1768081844124,-4887.27,0.00036712,30]
[401262721,1768081844135,-4887.27,0.00036712,30]
[401262723,1768081844144,-4887.27,0.00036712,30]
[401262725,1768081844154,-4887.27,0.00036712,30]
[401262727,1768081844163,-4887.27,0.00036712,30]
[401262729,1768081844172,-4887.27,0.00036712,30]
[401262730,1768081844182,-4887.27,0.00036712,30]
[401262731,1768081844191,-4887.27,0.00036712,30]
[401262732,1768081844200,-4887.27,0.00036712,30]
[401262733,1768081844210,-4887.27,0.00036712,30]
[401262734,1768081844219,-4887.27,0.00036712,30]
[401262735,1768081844228,-4887.27,0.00036712,30]
[401262736,1768081844237,-4887.27,0.00036712,30]
[401262737,1768081844247,-4887.27,0.00036712,30]
[401262738,1768081844256,-4887.27,0.00036712,30]
[401262739,1768081844265,-4887.3,0.00036712,30]
[401262740,1768081844275,-151.0,0.00036712,31]
[401262741,1768081844285,-151.0,0.00036712,31]
[401262742,1768081844295,-16848.28,0.00036712,30]
[401262743,1768081844304,-16848.28,0.00036712,30]
[401262744,1768081844313,-16848.28,0.00036712,30]
[401262745,1768081844322,-16848.28,0.00036712,30]
[401262746,1768081844331,-16848.28,0.00036712,30]
[401262747,1768081844341,-16848.28,0.00036712,30]
[401262748,1768081844350,-16848.28,0.00036712,30]
[401262749,1768081844359,-151.0,0.00036712,31]
[401262750,1768081844369,-16848.28,0.00036712,30]
[401262751,1768081844378,-16848.28,0.00036712,30]
[401262752,1768081844387,-16848.28,0.00036712,30]
[401262753,1768081844396,-16848.28,0.00036712,30]
[401262754,1768081844405,-16848.28,0.00036712,30]
[401262755,1768081844415,-16848.28,0.00036712,30]
[401262756,1768081844424,-16848.28,0.00036712,30]
[401262757,1768081844433,-16848.28,0.00036712,30]
[401262758,1768081844443,-16848.28,0.00036712,30]
[401262759,1768081844452,-16848.28,0.00036712,30]
[401262760,1768081844461,-16848.28,0.00036712,30]
[401262761,1768081844471,-16848.28,0.00036712,30]
[401262762,1768081844480,-16848.28,0.00036712,30]
[401262763,1768081844490,-16848.28,0.00036712,30]
[401262764,1768081844499,-16848.28,0.00036712,30]
[401262765,1768081844509,-16848.28,0.00036712,30]
[401262766,1768081844519,-16848.28908784,0.00036712,30]
[401262767,1768081844528,-26257.46,0.00036712,30]
[401262768,1768081844538,-26257.46,0.00036712,30]
[401262769,1768081844548,-241.15003758,0.00036712,120]
[401262770,1768081844558,-26257.46,0.00036712,30]
[401262771,1768081844567,-26257.46,0.00036712,30]
[401262772,1768081844576,-26257.46,0.00036712,30]
[401262773,1768081844586,-26257.46,0.00036712,30]
[401262774,1768081844596,-26257.46,0.00036712,30]
[401262775,1768081844605,-26257.46,0.00036712,30]
[401262776,1768081844615,-26257.46,0.00036712,30]
[401262777,1768081844624,-26257.46,0.00036712,30]
[401262778,1768081844634,-26257.46,0.00036712,30]
[401262779,1768081844643,-26257.46,0.00036712,30]
[401262780,1768081844653,-26257.46,0.00036712,30]
[401262781,1768081844662,-26257.46,0.00036712,30]
[401262782,1768081844672,-26257.46,0.00036712,30]
[401262783,1768081844682,-26257.46,0.00036712,30]
[401262784,1768081844691,-26257.46,0.00036712,30]
[401262785,1768081844701,-26257.46,0.00036712,30]
[401262786,1768081844711,-26257.46,0.00036712,30]
[401262787,1768081844720,-26257.46,0.00036712,30]
[401262788,1768081844729,-26257.46,0.00036712,30]
[401262789,1768081844738,-26257.46,0.00036712,30]
[401262790,1768081844748,-26257.46,0.00036712,30]
[401262791,1768081844758,-26257.54452659,0.00036712,30]
[401262792,1768081844767,-479.331389,0.00036712,31]
[401262793,1768081844776,-479.331389,0.00036712,31]
[401262794,1768081844789,-479.331389,0.00036712,31]
[401262795,1768081844798,-479.331389,0.00036712,31]
[401262796,1768081844807,-2195.79,0.00036712,30]
[401262797,1768081844817,-2195.79,0.00036712,30]
[401262798,1768081844826,-2195.79,0.00036712,30]
[401262799,1768081844835,-2195.79,0.00036712,30]
[401262800,1768081844844,-2195.79,0.00036712,30]
[401262801,1768081844853,-2195.79,0.00036712,30]
[401262802,1768081844862,-2195.79,0.00036712,30]
[401262803,1768081844872,-2195.79,0.00036712,30]
[401262804,1768081844881,-2195.79,0.00036712,30]
[401262805,1768081844890,-2195.79,0.00036712,30]
[401262806,1768081844899,-2195.79,0.00036712,30]
[401262807,1768081844908,-2195.79,0.00036712,30]
[401262808,1768081844917,-2195.79,0.00036712,30]
[401262809,1768081844927,-2195.79,0.00036712,30]
[401262810,1768081844937,-2195.79,0.00036712,30]
[401262811,1768081844946,-2195.79,0.00036712,30]
[401262812,1768081844955,-2195.79,0.00036712,30]
[401262813,1768081844965,-2195.79,0.00036712,30]
[401262814,1768081844974,-2195.79,0.00036712,30]
[401262815,1768081844984,-2195.79,0.00036712,30]
[401262816,1768081844993,-2195.79,0.00036712,30]
[401262817,1768081845003,-2195.79,0.00036712,30]
[401262818,1768081845012,-2195.79,0.00036712,30]
[401262819,1768081845022,-2195.88,0.00036712,30]
[401262820,1768081845032,-2192.87,0.00036712,30]
[401262821,1768081845042,-2192.87,0.00036712,30]
[401262822,1768081845052,-2192.87,0.00036712,30]
[401262823,1768081845064,-2192.87,0.00036712,30]
[401262824,1768081845073,-2192.87,0.00036712,30]
[401262825,1768081845083,-2192.87,0.00036712,30]
[401262826,1768081845092,-2192.87,0.00036712,30]
[401262827,1768081845101,-2192.87,0.00036712,30]
[401262828,1768081845110,-2192.87,0.00036712,30]
[401262829,1768081845120,-2192.87,0.00036712,30]
[401262830,1768081845130,-2192.87,0.00036712,30]
[401262832,1768081845140,-2192.87,0.00036712,30]
[401262834,1768081845149,-2192.87,0.00036712,30]
[401262835,1768081845158,-2192.87,0.00036712,30]
[401262836,1768081845169,-2192.87,0.00036712,30]
[401262837,1768081845178,-2192.87,0.00036712,30]
[401262838,1768081845188,-2192.87,0.00036712,30]
[401262839,1768081845197,-2192.87,0.00036712,30]
[401262841,1768081845207,-2192.87,0.00036712,30]
[401262842,1768081845217,-2192.87,0.00036712,30]
[401262843,1768081845228,-2192.87,0.00036712,30]
[401262844,1768081845239,-2192.87,0.00036712,30]
[401262845,1768081845249,-2192.87,0.00036712,30]
[401262846,1768081845259,-2192.89,0.00036712,30]
[401262848,1768081845269,-5048.48,0.00036712,30]
[401262849,1768081845278,-5048.48,0.00036712,30]
[401262850,1768081845287,-5048.48,0.00036712,30]
[401262851,1768081845296,-5048.48,0.00036712,30]
[401262852,1768081845306,-5048.48,0.00036712,30]
[401262853,1768081845315,-5048.48,0.00036712,30]
[401262854,1768081845324,-5048.48,0.00036712,30]
[401262855,1768081845334,-5048.48,0.00036712,30]
[401262856,1768081845344,-5048.48,0.00036712,30]
[401262857,1768081845353,-5048.48,0.00036712,30]
[401262858,1768081845363,-5048.48,0.00036712,30]
[401262859,1768081845373,-5048.48,0.00036712,30]
[401262860,1768081845382,-5048.48,0.00036712,30]
[401262861,1768081845393,-5048.48,0.00036712,30]
[401262862,1768081845403,-5048.48,0.00036712,30]
[401262863,1768081845412,-5048.48,0.00036712,30]
[401262864,1768081845421,-5048.48,0.00036712,30]
[401262865,1768081845431,-5048.48,0.00036712,30]
[401262866,1768081845440,-5048.48,0.00036712,30]
[401262867,1768081845450,-5048.48,0.00036712,30]
[401262868,1768081845460,-5048.48,0.00036712,30]
[401262869,1768081845469,-5048.48,0.00036712,30]
[401262870,1768081845478,-5048.48,0.00036712,30]
[401262871,1768081845488,-5048.65,0.00036712,30]
[401262872,1768081845498,-151.0,0.00036712,14]
[401262873,1768081845507,-500.0,0.00036712,2]
[401262874,1768081845518,-500.0,0.00036712,2]
[401262875,1768081845527,-500.0,0.00036712,2]
[401262876,1768081845537,-500.0,0.00036712,2]
[401262877,1768081845546,-500.0,0.00036712,2]
[401262878,1768081845555,-500.0,0.00036712,2]
[401262879,1768081845566,-500.0,0.00036712,2]
[401262880,1768081845576,-500.0,0.00036712,2]
[401262881,1768081845585,-500.0,0.00036712,2]
[401262882,1768081845594,-500.0,0.00036712,2]
[401262883,1768081845604,-500.0,0.00036712,2]
[401262884,1768081845613,-500.0,0.00036712,2]
[401262885,1768081845623,-500.0,0.00036712,2]
[401262886,1768081845632,-500.0,0.00036712,2]
[401262887,1768081845642,-500.0,0.00036712,2]
[401262888,1768081845651,-500.0,0.00036712,2]
[401262889,1768081845660,-502.32745149,0.00036712,2]
[401262890,1768081845670,-500.0,0.00036712,30]
[401262891,1768081845680,-95986.0676826,0.00036784,16]
[401262892,1768081845690,-151.0,0.00036865,14]
[401262893,1768081845700,-800.0,0.00036912,7]
[401262894,1768081845801,-2506.8925353,0.00036928,2]
[401262895,1768081845811,-1041.66666667,0.00037,3]
[401262896,1768081845820,-3095.4907844,0.00037012,2]
[401262897,1768081845832,-30608.617549,0.00037012,2]
[401262898,1768081845842,-1207.6669349,0.00037012,2]
[401262899,1768081845851,-2240.6907325,0.00037012,2]
[401262900,1768081845861,-157.421281,0.00037018,31]
[401262901,1768081845871,-151.0,0.00037018,31]
[401262902,1768081845880,-151.0,0.00037018,31]
[401262903,1768081845889,-151.0,0.00037018,31]
[401262904,1768081845899,-151.0,0.00037018,31]
[401262905,1768081845908,-151.0,0.00037018,31]
[401262906,1768081845917,-151.0,0.00037018,31]
[401262907,1768081845926,-151.0,0.00037018,31]
[401262908,1768081845935,-151.0,0.00037018,31]
[401262909,1768081845945,-151.0,0.00037018,31]
[401262910,1768081845954,-242.550437,0.00037018,31]
[401262911,1768081845963,-151.0,0.00037018,14]
[401262912,1768081845973,-152.0,0.00037049,14]
[401262913,1768081845983,-214.57010533,0.00037049,14]
[401262914,1768081845992,-152.0,0.00037049,14]
[401262915,1768081846001,-152.0,0.00037049,14]
[401262916,1768081846011,-152.0,0.00037049,14]
[401262917,1768081846020,-152.0,0.00037049,14]
[401262918,1768081846030,-152.0,0.00037049,14]
[401262919,1768081846039,-152.0,0.00037049,14]
[401262920,1768081846048,-152.0,0.00037049,14]
[401262921,1768081846057,-152.0,0.00037049,14]
[401262922,1768081846066,-202.68303487,0.00037049,14]
[401262923,1768081846076,-178.0,0.00037057,2]
[401262925,1768081846086,-152.0,0.0003706,14]
[401262927,1768081846095,-152.0,0.0003706,14]
[401262929,1768081846104,-151.0,0.00037069,31]
[401262931,1768081846113,-277.124706,0.00037069,31]
[401262933,1768081846123,-151.0,0.00037069,28]
[401262934,1768081846132,-151.0,0.00037069,28]
[401262935,1768081846141,-151.0,0.00037069,28]
[401262937,1768081846151,-151.0,0.00037069,28]
[401262938,1768081846162,-241.887947,0.00037069,28]
[401262939,1768081846171,-315.18853,0.00037069,31]
[401262940,1768081846181,-315.18853,0.00037069,31]
[401262941,1768081846190,-315.18853,0.00037069,31]
[401262942,1768081846200,-315.18853,0.00037069,31]
[401262943,1768081846210,-315.18853,0.00037069,31]
[401262944,1768081846220,-315.18853,0.00037069,31]
[401262945,1768081846230,-315.18853,0.00037069,31]
[401262946,1768081846241,-315.18853,0.00037069,31]
[401262947,1768081846251,-315.18853,0.00037069,31]
[401262948,1768081846260,-315.18853,0.00037069,31]
[401262949,1768081846270,-315.18853,0.00037069,31]
[401262950,1768081846279,-315.18853,0.00037069,31]
[401262951,1768081846289,-315.18853,0.00037069,31]
[401262952,1768081846298,-315.18853,0.00037069,31]
[401262953,1768081846307,-315.18853,0.00037069,31]
[401262954,1768081846316,-315.188524,0.00037069,31]
[401262955,1768081846326,-151.0,0.00037069,31]
[401262956,1768081846335,-163.913875,0.00037069,31]
[401262957,1768081846344,-151.0,0.00037069,31]
[401262958,1768081846354,-151.0,0.00037069,31]
[401262959,1768081846363,-151.0,0.00037069,31]
[401262960,1768081846373,-214.28838,0.00037069,31]
[401262961,1768081846384,-151.0,0.00037084,31]
[401262962,1768081846395,-151.0,0.00037084,31]
[401262963,1768081846406,-151.0,0.00037084,31]
[401262964,1768081846416,-151.0,0.00037084,31]
[401262965,1768081846426,-155.463633,0.00037084,31]
[401262966,1768081846435,-479.331389,0.00037084,31]
[401262967,1768081846446,-479.331389,0.00037084,31]
[401262968,1768081846455,-479.331389,0.00037084,31]
[401262969,1768081846465,-479.331389,0.00037084,31]
[401262970,1768081846475,-479.331389,0.00037084,31]
[401262971,1768081846487,-479.331389,0.00037084,31]
[401262972,1768081846496,-479.331389,0.00037084,31]
[401262973,1768081846506,-479.331389,0.00037084,31]
[401262974,1768081846516,-479.331389,0.00037084,31]
[401262975,1768081846527,-479.331389,0.00037084,31]
[401262976,1768081846537,-479.331389,0.00037084,31]
[401262977,1768081846547,-479.331389,0.00037084,31]
[401262978,1768081846558,-479.331389,0.00037084,31]
[401262979,1768081846567,-479.331389,0.00037084,31]
[401262980,1768081846578,-479.331389,0.00037084,31]
[401262981,1768081846588,-479.33138,0.00037084,31]
[401262982,1768081846598,-2458930.47217678,0.00037084,20]
[401262983,1768081846683,-359.99275684,0.000329,120]
[401262984,1768081846696,-263.98648147,0.000329,120]
[401262985,1768081846709,-325.99178291,0.000329,120]
[401262986,1768081846720,-2430.39543152,0.000329,120]
[401262987,1768081846732,-671.89575146,0.000329,120]
[401262988,1768081846741,-362.56190635,0.0003493,2]
[401262989,1768081846751,-262.05786899,0.00037084,20]
[401262990,1768081846803,-256.65,0.0003159,10]
[401262991,1768081846812,-4052.2622042,0.000339,120]
[401262992,1768081846821,-362.56190635,0.0003534,2]
[401262993,1768081846830,-786.0,0.00036712,30]
[401262994,1768081846841,-273.0,0.00036712,30]
[401262995,1768081846852,-48844.72469088,0.00037084,20]
[401262996,1768081846906,-478.95360475,0.000349,120]
[401262997,1768081868423,37.16545997,0.0002388,120]
[401262998,1768081868450,185.0,0.0002388,120]
[401262999,1768081868472,18.87675619,0.0002388,120]
[401263000,1768081991593,-217.03686211,0.00037084,120]
[401263001,1768081991620,-223.41447741,0.00037084,120]
[401263002,1768081991649,-3000.0,0.00037084,120]
[401263003,1768081991676,-331.75410102,0.00037084,120]
[401263004,1768081991703,-200.0,0.00037084,120]
[401263005,1768081991731,-477.89721321,0.00037084,120]
[401263006,1768081991759,-3264.19196,0.00037084,60]
[401263007,1768081991786,-788.56106,0.00037084,60]
[401263008,1768081991814,-788.56106,0.00037084,60]
[401263009,1768081991847,-788.56106,0.00037084,60]
[401263010,1768081991878,-788.56106,0.00037084,60]
[401263011,1768081991910,-788.56106,0.00037084,60]
[401263012,1768081991938,-3361.162214,0.00037084,120]
[401263013,1768081991967,-175.58031896,0.00037084,120]
[401263014,1768081991994,-2115.91267643,0.00037084,31]
[401263015,1768081992023,-3184.18222144,0.00037084,30]
[401263016,1768081992052,-376.57740322,0.00037084,30]
[401263017,1768081992082,-2226.28769142,0.00037084,35]
[401263018,1768081992111,-543.51913413,0.00037084,30]
[401263019,1768081992142,-209.39853977,0.00037084,35]
[401263020,1768081992170,-262.45651778,0.00037084,120]
[401263021,1768081992198,-2702.50666799,0.00037084,30]
[401263022,1768081992226,-229.18659111,0.00037084,30]
[401263023,1768081992258,-3782.66307881,0.00037084,60]
[401263024,1768081992286,-299.29212122,0.00037084,31]
[401263025,1768081992315,-2675.71663445,0.00037084,31]
[401263026,1768081992346,-1779.11690622,0.00037084,120]
[401263027,1768081992374,-280.57206321,0.00037084,120]
[401263028,1768081992414,-2205.64981286,0.00037084,120]
[401263029,1768081992445,-200.0,0.00037084,120]
[401263030,1768081992475,-203.22442458,0.00037084,30]
[401263031,1768081992506,-575.93394027,0.00037084,120]
[401263032,1768081992534,-602.87404744,0.00037084,60]
[401263033,1768081992561,-152.10676006,0.00037084,120]
[401263034,1768081992588,-1735.44641609,0.00037084,30]
[401263035,1768081992617,-210.5226355,0.00037084,30]
[401263036,1768081992645,-883.22178794,0.00037084,30]
[401263037,1768081992672,-201.20987277,0.00037084,120]
[401263038,1768081992699,-215.89327274,0.00037084,120]
[401263039,1768081992867,-215.5824742,0.00037084,30]
[401263040,1768081992895,-834.7485913,0.00037084,120]
[401263041,1768081992926,-504.15,0.00037084,30]
[401263042,1768081992953,-3117.36241447,0.00037084,120]
[401263043,1768081992979,-1196.98335695,0.00037084,120]
[401263044,1768081993005,-1450.48045575,0.00037084,120]
[401263045,1768081993030,-513.08437061,0.00037084,120]
[401263046,1768081993058,-1381.20961672,0.00037084,120]
[401263047,1768081993084,-284.98320951,0.00037084,30]
[401263048,1768081993110,-419.51416132,0.00037084,30]
[401263049,1768081993136,-469.18960954,0.00037084,30]
[401263050,1768081993163,-331.24741884,0.00037084,30]
[401263051,1768081993191,-1465.0,0.00037084,60]
[401263052,1768081993220,-4258.43,0.00037084,30]
[401263053,1768081993247,-169.25143,0.00037084,60]
[401263054,1768081993274,-482.0,0.00037084,120]
[401263055,1768081993300,-457.36443182,0.00037084,60]
[401263056,1768081993326,-5137.0,0.00037084,120]
[401263057,1768081993353,-1514.05710256,0.00037084,120]
[401263058,1768081993380,-3276.79817263,0.00037084,120]
[401263059,1768081993407,-4000.0,0.00037084,120]
[401263060,1768081993438,-567.24677749,0.00037084,60]
[401263061,1768081993468,-243.66916815,0.00037084,60]
[401263062,1768081993495,-154.55608598,0.00037084,60]
[401263063,1768081993532,-192.81361024,0.00037084,120]
[401263064,1768081993565,-157.61301494,0.00037084,60]
[401263065,1768081993595,-344.0,0.00037084,120]
[401263066,1768081993623,-2943.56504827,0.00037084,30]
[401263067,1768081993653,-1856.50607839,0.00037084,120]
[401263068,1768081993682,-10000.0,0.00037084,31]
[401263069,1768081993711,-10000.0,0.00037084,31]
[401263070,1768081993739,-10000.0,0.00037084,31]
[401263071,1768081993767,-10000.0,0.00037084,31]
[401263072,1768081993795,-10000.0,0.00037084,31]
[401263073,1768081993824,-13583.13,0.00037084,120]
[401263074,1768081993854,-27798.0,0.00037084,120]
[401263075,1768081993883,-11273.85247495,0.00037084,120]
[401263076,1768081993910,-7123.13681148,0.00037084,120]
[401263077,1768081993939,-4797.64208476,0.00037084,120]
[401263078,1768081993969,-13118.93269129,0.00037084,90]
[401263079,1768081993997,-281.0,0.00037084,30]
[401263080,1768081994025,-834.76807863,0.00037084,120]
[401263081,1768081994054,-495.87,0.00037084,120]
[401263082,1768081994082,-1314.40199348,0.00037084,30]
[401263083,1768081994113,-234.21031159,0.00037084,120]
[401263084,1768081994144,-36751.25264232,0.00037084,120]
[401263085,1768081994179,-151.0,0.00037084,30]
[401263086,1768081994207,-209.0073028,0.00037084,120]
[401263087,1768081994235,-4149.0,0.00037084,120]
[401263088,1768081994264,-2876.0,0.00037084,120]
[401263089,1768081994291,-1614.41349779,0.00037084,120]
[401263090,1768081994320,-3483.57553819,0.00037084,120]
[401263091,1768081994348,-199.00792363,0.00037084,60]
[401263092,1768081994376,-515.20556567,0.00037084,31]
[401263093,1768081994404,-6130.93162216,0.00037084,60]
[401263094,1768081994431,-155.22989407,0.00037084,31]
[401263095,1768081994459,-3088.67396,0.00037084,31]
[401263096,1768081994486,-1731.128,0.00037084,32]
[401263097,1768081994513,-324.72,0.00037084,120]
[401263098,1768081994542,-4029.44757691,0.00037084,60]
[401263099,1768081994571,-30484.97693723,0.00037084,60]
[401263100,1768081994603,-3038.68686236,0.00037084,120]
[401263101,1768081994631,-1194.84579696,0.00037084,30]
[401263102,1768081994659,-3753.39714197,0.00037084,120]
[401263103,1768081994688,-1612.35231503,0.00037084,120]
[401263104,1768081994717,-320.7896016,0.00037084,30]
[401263105,1768081994744,-1844.52,0.00037084,120]
[401263106,1768081994771,-1783.3400145,0.00037084,120]
[401263107,1768081994800,-3087.0,0.00037084,120]
[401263108,1768081994828,-154.12864116,0.00037084,120]
[401263109,1768081994855,-2934.28448801,0.00037084,30]
[401263110,1768081994888,-313.8868207,0.00037084,120]
[401263111,1768081994913,-184.54813476,0.00037084,120]
[401263112,1768081994938,-283.92907927,0.00037084,120]
[401263113,1768081994964,-283.92907927,0.00037084,120]
[401263114,1768081994990,-283.92907927,0.00037084,120]
[401263115,1768081995016,-171.69688508,0.00037084,120]
[401263116,1768081995045,-156.60731197,0.00037084,120]
[401263117,1768081995073,-156.60731197,0.00037084,120]
[401263118,1768081995100,-156.60731197,0.00037084,120]
[401263119,1768081995128,-156.60731197,0.00037084,120]
[401263120,1768081995159,-156.60731197,0.00037084,120]
[401263121,1768081995185,-156.60731197,0.00037084,120]
[401263122,1768081995211,-156.60731197,0.00037084,120]
[401263123,1768081995241,-156.60731197,0.00037084,120]
[401263124,1768081995269,-1000.0,0.00037084,30]
[401263125,1768081995295,-194.9011572,0.00037084,30]
[401263126,1768081995322,-100000.0,0.00037084,30]
[401263127,1768081995346,-100000.0,0.00037084,30]
[401263128,1768081995372,-100000.0,0.00037084,30]
[401263129,1768081995398,-150.1,0.00037084,40]
[401263130,1768081995424,-100000.0,0.00037084,30]
[401263131,1768081995449,-100000.0,0.00037084,30]
[401263132,1768081995474,-10601.0,0.00037084,30]
[401263133,1768081995500,-245.445707,0.00037084,31]
[401263134,1768081995649,-245.445707,0.00037084,31]
[401263135,1768081995678,-245.445707,0.00037084,31]
[401263136,1768081995704,-245.445707,0.00037084,31]
[401263137,1768081995730,-245.445707,0.00037084,31]
[401263138,1768081995755,-245.445707,0.00037084,31]
[401263139,1768081995794,-245.445707,0.00037084,31]
[401263140,1768081995822,-245.445707,0.00037084,31]
[401263141,1768081995850,-245.445707,0.00037084,31]
[401263142,1768081995883,-245.445707,0.00037084,31]
[401263143,1768081995911,-245.445707,0.00037084,31]
[401263144,1768081995938,-245.445707,0.00037084,31]
[401263145,1768081995965,-245.445707,0.00037084,31]
[401263146,1768081995992,-245.445707,0.00037084,31]
[401263147,1768081996021,-245.445707,0.00037084,31]
[401263148,1768081996048,-245.445707,0.00037084,31]
[401263149,1768081996074,-245.445707,0.00037084,31]